Workbook

Sheet Light measurements
B2: 33 (L6) | C2: 25 (L5) | D2: 14 (L2) | E2: 12 (L1) | F2: 13 (B2) | G2: 4 (R2) | H2: 16 (R3) | I2: 5 (R5) | J2: 18 (R6) | K2: 19 (R7) | L2: 21 (R9)
A3: off | B3: 0 | C3: 3.3 | D3: 0 | E3: 0 | F3: 3.3 | G3: 0 | H3: 3.3 | I3: 3.3 | J3: 3.3 | K3: 3.3 | L3: 3.3
A4: red low | B4: 3.3 | C4: 3.3 | D4: 3.3 | E4: 0 | F4: 2.95 | G4: 3.3 | H4: 3.3 | I4: 3.3 | J4: 3.3 | K4: 3.3 | L4: 3.3
A5: red medium | B5: 3.3 | C5: 3.3 | D5: 3.3 | E5: 0 | F5: 1.31 | G5: 3.3 | H5: 3.3 | I5: 3.3 | J5: 3.3 | K5: 3.3 | L5: 3.3
A6: red high | B6: 3.3 | C6: 3.3 | D6: 3.3 | E6: 0 | F6: 0.01 | G6: 3.3 | H6: 3.3 | I6: 3.3 | J6: 3.3 | K6: 3.3 | L6: 3.3
A7: green low | B7: 3.3 | C7: 3.3 | D7: 2.86 | E7: 0 | F7: 3.13 | G7: 3.3 | H7: 3.3 | I7: 3.3 | J7: 3.3 | K7: 3.3 | L7: 3.3
A8: green high | B8: 3.3 | C8: 3.3 | D8: 0.01 | E8: 0 | F8: 3.3 | G8: 3.3 | H8: 3.3 | I8: 3.3 | J8: 3.3 | K8: 3.3 | L8: 3.3
A9: blue low | B9: 3.3 | C9: 3.3 | D9: 3.3 | E9: 0 | F9: 3.3 | G9: 3.3 | H9: 3.3 | I9: 2.95 | J9: 3.3 | K9: 3.3 | L9: 3.3
A10: blue high | B10: 3.3 | C10: 3.3 | D10: 3.3 | E10: 0 | F10: 3.3 | G10: 3.3 | H10: 3.3 | I10: 0.01 | J10: 3.3 | K10: 3.3 | L10: 3.3
A12: GPIO13 | B12: RED
A13: GPIO14 | B13: GREEN
A14: GPIO5 | B14: BLUE
A16: GPIO33 | B16: ENABLE
A17: GPIO4 | B17: ENABLE? Power front buttons?
B19: 33 (L6) | C19: 25 (L5) | D19: 14 (L2) | E19: 12 (L1) | F19: 13 (B2) | G19: 4 (R2) | H19: 16 (R3) | I19: 5 (R5) | J19: 18 (R6) | K19: 19 (R7) | L19: 21 (R9)
A20: off | B20: 0 | C20: 3.3 | D20: 0 | E20: 0 | F20: 3.3 | G20: 0 | H20: 3.3 | I20: 3.3 | J20: 3.3 | K20: 3.3 | L20: 3.3
A21: white warm high | B21: 3.3 | C21: 3.3 | D21: 1.13 | E21: 0.22 | F21: 0.01 | G21: 3.3 | H21: 3.3 | I21: 3.3 | J21: 3.3 | K21: 3.3 | L21: 3.3
A22: white warm medium | B22: 3.3 | C22: 3.3 | D22: 2.06 | E22: 0.2 | F22: 1.45 | G22: 3.3 | H22: 3.3 | I22: 3.3 | J22: 3.3 | K22: 3.3 | L22: 3.3
A23: white warm low | B23: 3.3 | C23: 3.3 | D23: 2.97 | E23: 0.19 | F23: 2.86 | G23: 3.3 | H23: 3.3 | I23: 3.3 | J23: 3.3 | K23: 3.3 | L23: 3.3
A24: white cold high | B24: 3.3 | C24: 3.3 | D24: 0.01 | E24: 1.1 | F24: 3.3 | G24: 3.3 | H24: 3.3 | I24: 0.62 | J24: 3.3 | K24: 3.3 | L24: 3.3
A25: white cold medium | B25: 3.3 | C25: 3.3 | D25: 1.45 | E25: 0.69 | F25: 3.3 | G25: 3.3 | H25: 3.3 | I25: 1.78 | J25: 3.3 | K25: 3.3 | L25: 3.3
A26: white cold low | B26: 3.3 | C26: 3.3 | D26: 2.86 | E26: 0.28 | F26: 3.3 | G26: 3.3 | H26: 3.3 | I26: 2.92 | J26: 3.3 | K26: 3.3 | L26: 3.3
A27: white mix high | B27: 3.3 | C27: 3.3 | D27: 0.88 | E27: 2.51 | F27: 3.3 | G27: 3.3 | H27: 3.3 | I27: 1.59 | J27: 3.3 | K27: 3.3 | L27: 3.3
A28: white mix low | B28: 3.3 | C28: 3.3 | D28: 2.95 | E28: 0.42 | F28: 3.3 | G28: 3.3 | H28: 3.3 | I28: 3.02 | J28: 3.3 | K28: 3.3 | L28: 3.3
A30: GPIO12 | B30: BRIGHTNESS?
A31: GPIO13 | B31: WHITE WARM LEVEL
A32: GPIO5 | B32: WHITE COLD LEVEL
A33: GPIO14 | B33: SOME KIND OF MIX
B35: 33 (L6) | C35: 25 (L5) | D35: 14 (L2) | E35: 12 (L1) | F35: 13 (B2) | G35: 4 (R2) | H35: 16 (R3) | I35: 5 (R5) | J35: 18 (R6) | K35: 19 (R7) | L35: 21 (R9)
A36: off | B36: 0 | C36: 3.3 | D36: 0 | E36: 0 | F36: 3.3 | G36: 0 | H36: 3.3 | I36: 3.3 | J36: 3.3 | K36: 3.3 | L36: 3.3
A37: night mode | B37: 3.3 | C37: 3.3 | D37: 3.14 | E37: 0 | F37: 3.14 | G37: 3.3 | H37: 3.3 | I37: 3.18 | J37: 3.3 | K37: 3.3 | L37: 3.3
A39: RGB mode with a little bit of brightness on the RGB channels.

Sheet Detailed RGB light
A1: R | B1: G | C1: B | D1: Brightness | E1: Red 13 (B2) | F1: Green 14 (L2) | G1: Blue 5 (R5)
A2: 255 | B2: 0 | C2: 0 | D2: 1 | E2: 2.95 | F2: 3.27 | G2: 3.27
D3: 25 | E3: 2.71 | F3: 3.27 | G3: 3.27
D4: 50 | E4: 2.41 | F4: 3.27 | G4: 3.27
D5: 75 | E5: 2.12 | F5: 3.27 | G5: 3.27
D6: 90 | E6: 1.94 | F6: 3.27 | G6: 3.27
D7: 100 | E7: 1.82 | F7: 3.27 | G7: 3.27
A15: R | B15: G | C15: B | D15: Brightness | E15: Red 13 (B2) | F15: Green 14 (L2) | G15: Blue 5 (R5)
A16: 255 | B16: 255 | C16: 0 | D16: 1 | E16: 3.04 | F16: 2.86 | G16: 3.17
D17: 25 | E17: 2.93 | F17: 2.63 | G17: 3.17
D18: 50 | E18: 2.81 | F18: 2.34 | G18: 3.17
D19: 75 | E19: 2.68 | F19: 2.05 | G19: 3.16
D20: 100 | E20: 2.56 | F20: 1.77 | G20: 3.16
A29: R | B29: G | C29: B | D29: Brightness | E29: Red 13 (B2) | F29: Green 14 (L2) | G29: Blue 5 (R5)
A30: 255 | B30: 255 | C30: 255 | D30: 1 | E30: 3.04 | F30: 2.86 | G30: 3.07
D31: 25 | E31: 2.94 | F31: 2.63 | G31: 3
D32: 50 | E32: 2.81 | F32: 2.34 | G32: 2.91
D33: 75 | E33: 2.69 | F33: 2.05 | G33: 2.82
D34: 100 | E34: 2.56 | F34: 1.77 | G34: 2.73
A43: R | B43: G | C43: B | D43: Brightness | E43: Red 13 (B2) | F43: Green 14 (L2) | G43: Blue 5 (R5)
A44: 0 | B44: 255 | C44: 0 | D44: 1 | E44: 3.27 | F44: 2.95 | G44: 3.27
D45: 25 | E45: 3.27 | F45: 2.71 | G45: 3.27
D46: 50 | E46: 3.27 | F46: 2.41 | G46: 3.27
D47: 75 | E47: 3.27 | F47: 2.11 | G47: 3.27
D48: 100 | E48: 3.27 | F48: 1.82 | G48: 3.27
A57: R | B57: G | C57: B | D57: Brightness | E57: Red 13 (B2) | F57: Green 14 (L2) | G57: Blue 5 (R5)
A58: 0 | B58: 255 | C58: 255 | D58: 1 | E58: 3.13 | F58: 2.86 | G58: 3.07
D59: 25 | E59: 3.1 | F59: 2.63 | G59: 3
D60: 50 | E60: 3.05 | F60: 2.34 | G60: 2.9
D61: 75 | E61: 3.01 | F61: 2.05 | G61: 2.8
D62: 100 | E62: 2.97 | F62: 1.76 | G62: 2.71
A71: R | B71: G | C71: B | D71: Brightness | E71: Red 13 (B2) | F71: Green 14 (L2) | G71: Blue 5 (R5)
A72: 0 | B72: 0 | C72: 255 | D72: 1 | E72: 3.27 | F72: 3.27 | G72: 2.95
D73: 25 | E73: 3.27 | F73: 3.27 | G73: 2.71
D74: 50 | E74: 3.27 | F74: 3.27 | G74: 2.42
D75: 75 | E75: 3.27 | F75: 3.27 | G75: 2.12
D76: 100 | E76: 3.27 | F76: 3.27 | G76: 1.82
A85: R | B85: G | C85: B | D85: Brightness | E85: Red 13 (B2) | F85: Green 14 (L2) | G85: Blue 5 (R5)
A86: 255 | B86: 0 | C86: 255 | D86: 1 | E86: 2.88 | F86: 3.12 | G86: 2.86
D87: 25 | E87: 2.66 | F87: 3.08 | G87: 2.63
D88: 50 | E88: 2.39 | F88: 3.03 | G88: 2.35
D89: 75 | E89: 2.12 | F89: 2.98 | G89: 2.06
D90: 100 | E90: 1.85 | F90: 2.92 | G90: 1.77

Sheet Detailed white light
D1: Green | E1: White | F1: Red | G1: Blue | N1: Brightness 1 | T1: Brightness 100
B2: HA temperature | C2: brightness | D2: GPIO14 | E2: GPIO12 | F2: GPIO13 | G2: GPIO5 | N2: temperature | O2: GPIO14 | P2: GPIO12 | Q2: GPIO13 | R2: GPIO5 | T2: temperature | U2: GPIO14 | V2: GPIO12 | W2: GPIO13 | X2: GPIO5
A3: 100% warm | B3: =B131 -> 588 | C3: 1 | D3: 2.97 | E3: 0.19 | F3: 2.86 | G3: 3.28 | N3: =B3 -> 588 | O3: =D3 -> 2.97 | P3: =E3 -> 0.19 | Q3: =F3 -> 2.86 | R3: =G3 -> 3.28 | T3: 588 | U3: =D13 -> 1.13 | V3: =E13 -> 0.22 | W3: =F13 -> 0.01 | X3: =G13 -> 3.28
B4: =(B3-$B$132)/($B$131-$B$132) -> 1 | C4: 10 | D4: 2.8 | E4: 0.2 | F4: 2.6 | G4: 3.28 | N4: =B16 -> 479 | O4: =D16 -> 2.94 | P4: =E16 -> 0.2 | Q4: =F16 -> 2.86 | R4: =G16 -> 3.28 | T4: 479 | U4: =D26 -> 0.78 | V4: =E26 -> 0.3 | W4: =F26 -> 0 | X4: =G26 -> 3.28
C5: 20 | D5: 2.64 | E5: 0.2 | F5: 2.34 | G5: 3.28 | N5: =B29 -> 420 | O5: =D29 -> 2.92 | P5: =E29 -> 0.21 | Q5: =F29 -> 2.86 | R5: =G29 -> 3.27 | T5: 420 | U5: =D30 -> 0.61 | V5: =E30 -> 0.39 | W5: =F30 -> 0 | X5: =G30 -> 3.28
C6: 30 | D6: 2.43 | E6: 0.2 | F6: 2.02 | G6: 3.28 | N6: 371 | O6: =D33 -> 2.9 | P6: =E33 -> 0.28 | Q6: =F33 -> 2.86 | R6: =G33 -> 3.28 | T6: 371 | U6: =D43 -> 0.45 | V6: =E43 -> 1.07 | W6: =F43 -> 0 | X6: =G43 -> 3.28
C7: 40 | D7: 2.24 | E7: 0.2 | F7: 1.73 | G7: 3.28
C8: 50 | D8: 2.06 | E8: 0.2 | F8: 1.44 | G8: 3.28
C9: 60 | D9: 1.87 | E9: 0.21 | F9: 1.16 | G9: 3.28
C10: 70 | D10: 1.69 | E10: 0.21 | F10: 0.87 | G10: 3.28
C11: 80 | D11: 1.5 | E11: 0.21 | F11: 0.58 | G11: 3.28
C12: 90 | D12: 1.32 | E12: 0.21 | F12: 0.29 | G12: 3.28
C13: 100 | D13: 1.13 | E13: 0.22 | F13: 0.01 | G13: 3.28
D14: Green | E14: White | F14: Red | G14: Blue
B15: HA temperature | C15: brightness | D15: GPIO14 | E15: GPIO12 | F15: GPIO13 | G15: GPIO5
A16: 75% warm | B16: =ROUND($B131-$B133,0) -> 479 | C16: 1 | D16: 2.94 | E16: 0.2 | F16: 2.86 | G16: 3.28
B17: =(B16-$B$132)/($B$131-$B$132) -> 0.7494252874 | C17: 10 | D17: 2.74 | E17: 0.21 | F17: 2.6 | G17: 3.28
C18: 20 | D18: 2.52 | E18: 0.22 | F18: 2.31 | G18: 3.28
C19: 30 | D19: 2.32 | E19: 0.23 | F19: 2.05 | G19: 3.28
C20: 40 | D20: 2.09 | E20: 0.24 | F20: 1.73 | G20: 3.28
C21: 50 | D21: 1.87 | E21: 0.25 | F21: 1.44 | G21: 3.28
C22: 60 | D22: 1.65 | E22: 0.26 | F22: 1.16 | G22: 3.28
C23: 70 | D23: 1.46 | E23: 0.26 | F23: 0.9 | G23: 3.28
C24: 80 | D24: 1.22 | E24: 0.28 | F24: 0.58 | G24: 3.28
C25: 90 | D25: 1 | E25: 0.29 | F25: 0.29 | G25: 3.28
C26: 100 | D26: 0.78 | E26: 0.3 | F26: 0 | G26: 3.28
D27: Green | E27: White | F27: Red | G27: Blue
B28: HA temperature | C28: brightness | D28: GPIO14 | E28: GPIO12 | F28: GPIO13 | G28: GPIO5
B29: 420 | C29: 1 | D29: 2.92 | E29: 0.21 | F29: 2.86 | G29: 3.27
B30: =(B29-$B$132)/($B$131-$B$132) -> 0.6137931034 | C30: 100 | D30: 0.61 | E30: 0.39 | F30: 0 | G30: 3.28
D31: Green | E31: White | F31: Red | G31: Blue
B32: HA temperature | C32: brightness | D32: GPIO14 | E32: GPIO12 | F32: GPIO13 | G32: GPIO5
A33: 50% warm | B33: =ROUND($B131-2*$B133,0) -> 371 | C33: 1 | D33: 2.9 | E33: 0.28 | F33: 2.86 | G33: 3.28
B34: =(B33-$B$132)/($B$131-$B$132) -> 0.5011494253 | C34: 10 | D34: 2.68 | E34: 0.35 | F34: 2.6 | G34: 3.28
C35: 20 | D35: 2.43 | E35: 0.43 | F35: 2.31 | G35: 3.28
C36: 30 | D36: 2.21 | E36: 0.5 | F36: 2.05 | G36: 3.28
C37: 40 | D37: 1.93 | E37: 0.59 | F37: 1.73 | G37: 3.28
C38: 50 | D38: 1.69 | E38: 0.67 | F38: 1.45 | G38: 3.28
C39: 60 | D39: 1.44 | E39: 0.75 | F39: 1.16 | G39: 3.28
C40: 70 | D40: 1.22 | E40: 0.82 | F40: 0.9 | G40: 3.28
C41: 80 | D41: 0.94 | E41: 0.91 | F41: 0.58 | G41: 3.28
C42: 90 | D42: 0.69 | E42: 0.99 | F42: 0.29 | G42: 3.28
C43: 100 | D43: 0.45 | E43: 1.07 | F43: 0 | G43: 3.28
D44: Green | E44: White | F44: Red | G44: Blue
B45: HA temperature | C45: brightness | D45: GPIO14 | E45: GPIO12 | F45: GPIO13 | G45: GPIO5
B46: 370 | C46: 1 | D46: 2.9 | E46: 0.28 | F46: 2.86 | G46: 3.28
B47: =(B46-$B$132)/($B$131-$B$132) -> 0.4988505747 | C47: 100 | D47: 0.45 | E47: 1.07 | F47: 0 | G47: 3.28
D48: Green | E48: White | F48: Red | G48: Blue
B49: HA temperature | C49: brightness | D49: GPIO14 | E49: GPIO12 | F49: GPIO13 | G49: GPIO5
B50: 334 | C50: 1 | D50: 2.9 | E50: 0.28 | F50: 2.86 | G50: 3.28
B51: =(B50-$B$132)/($B$131-$B$132) -> 0.416091954 | C51: 100 | D51: 0.45 | E51: 1.07 | F51: 0 | G51: 3.28
D52: Green | E52: White | F52: Red | G52: Blue
B53: HA temperature | C53: brightness | D53: GPIO14 | E53: GPIO12 | F53: GPIO13 | G53: GPIO5
B54: 333 | C54: 1 | D54: 2.96 | E54: 0.42 | F54: 2.89 | G54: 3.28
B55: =(B54-$B$132)/($B$131-$B$132) -> 0.4137931034 | C55: 100 | D55: 1.03 | E55: 2.43 | F55: 0.32 | G55: 3.28
D56: Green | E56: White | F56: Red | G56: Blue
B57: HA temperature | C57: brightness | D57: GPIO14 | E57: GPIO12 | F57: GPIO13 | G57: GPIO5
B58: 313 | C58: 1 | D58: 2.96 | E58: 0.42 | F58: 2.89 | G58: 3.28
B59: =(B58-$B$132)/($B$131-$B$132) -> 0.367816092 | C59: 100 | D59: 1.03 | E59: 2.43 | F59: 0.32 | G59: 3.28
D60: Green | E60: White | F60: Red | G60: Blue
B61: HA temperature | C61: brightness | D61: GPIO14 | E61: GPIO12 | F61: GPIO13 | G61: GPIO5
B62: 312 | C62: 1 | D62: 3.27 | E62: 0.5 | F62: 3.27 | G62: 3.27
B63: =(B62-$B$132)/($B$131-$B$132) -> 0.3655172414 | C63: 100 | D63: 3.27 | E63: 3.29 | F63: 3.27 | G63: 3.27
D64: Green | E64: White | F64: Red | G64: Blue
B65: HA temperature | C65: brightness | D65: GPIO14 | E65: GPIO12 | F65: GPIO13 | G65: GPIO5
A66: 30% warm | B66: 284 | C66: 1 | D66: 3.27 | E66: 0.5 | F66: 3.27 | G66: 3.28
B67: =(B66-$B$132)/($B$131-$B$132) -> 0.3011494253 | C67: 10 | D67: 3.27 | E67: 0.75 | F67: 3.27 | G67: 3.28
C68: 20 | D68: 3.27 | E68: 1.03 | F68: 3.27 | G68: 3.28
C69: 30 | D69: 3.27 | E69: 1.31 | F69: 3.27 | G69: 3.28
C70: 40 | D70: 3.27 | E70: 1.59 | F70: 3.27 | G70: 3.28
C71: 50 | D71: 3.27 | E71: 1.88 | F71: 3.27 | G71: 3.28
C72: 60 | D72: 3.27 | E72: 2.16 | F72: 3.27 | G72: 3.28
C73: 70 | D73: 3.27 | E73: 2.44 | F73: 3.27 | G73: 3.28
C74: 80 | D74: 3.27 | E74: 2.72 | F74: 3.27 | G74: 3.28
C75: 90 | D75: 3.27 | E75: 3 | F75: 3.27 | G75: 3.28
C76: 100 | D76: 3.27 | E76: 3.28 | F76: 3.27 | G76: 3.28
D77: Green | E77: White | F77: Red | G77: Blue
B78: HA temperature | C78: brightness | D78: GPIO14 | E78: GPIO12 | F78: GPIO13 | G78: GPIO5
A79: 25% warm | B79: =ROUND($B131-3*$B133,0) -> 262 | C79: 1 | D79: 3.27 | E79: 0.5 | F79: 3.27 | G79: 3.27
B80: =(B79-$B$132)/($B$131-$B$132) -> 0.2505747126 | C80: 10 | D80: 3.27 | E80: 0.75 | F80: 3.27 | G80: 3.27
C81: 20 | D81: 3.27 | E81: 1.03 | F81: 3.27 | G81: 3.27
C82: 30 | D82: 3.27 | E82: 1.29 | F82: 3.27 | G82: 3.27
C83: 40 | D83: 3.27 | E83: 1.6 | F83: 3.27 | G83: 3.27
C84: 50 | D84: 3.27 | E84: 1.88 | F84: 3.27 | G84: 3.27
C85: 60 | D85: 3.27 | E85: 2.16 | F85: 3.27 | G85: 3.27
C86: 70 | D86: 3.27 | E86: 2.41 | F86: 3.27 | G86: 3.27
C87: 80 | D87: 3.27 | E87: 2.72 | F87: 3.27 | G87: 3.27
C88: 90 | D88: 3.27 | E88: 3 | F88: 3.27 | G88: 3.27
C89: 100 | D89: 3.27 | E89: 3.29 | F89: 3.27 | G89: 3.27
D90: Green | E90: White | F90: Red | G90: Blue
B91: HA temperature | C91: brightness | D91: GPIO14 | E91: GPIO12 | F91: GPIO13 | G91: GPIO5
B92: 251 | C92: 1 | D92: 3.27 | E92: 0.5 | F92: 3.27 | G92: 3.27
B93: =(B92-$B$132)/($B$131-$B$132) -> 0.2252873563 | C93: 100 | D93: 3.27 | E93: 3.29 | F93: 3.27 | G93: 3.27
D95: Green | E95: White | F95: Red | G95: Blue
B96: HA temperature | C96: brightness | D96: GPIO14 | E96: GPIO12 | F96: GPIO13 | G96: GPIO5
B97: 250 | C97: 1 | D97: 2.94 | E97: 0.42 | F97: 3.27 | G97: 3.02
B98: =(B97-$B$132)/($B$131-$B$132) -> 0.2229885057 | C98: 100 | D98: 0.88 | E98: 2.51 | F98: 3.27 | G98: 1.59
D99: Green | E99: White | F99: Red | G99: Blue
B100: HA temperature | C100: brightness | D100: GPIO14 | E100: GPIO12 | F100: GPIO13 | G100: GPIO5
B101: =ROUND(4.36 * 20 +B118,0) -> 240 | C101: 1 | D101: 2.94 | E101: 0.42 | F101: 3.27 | G101: 3.02
B102: =(B101-$B$132)/($B$131-$B$132) -> 0.2 | C102: 50 | D102: 1.92 | E102: 1.46 | F102: 3.27 | G102: 2.31
C103: 100 | D103: 0.88 | E103: 2.51 | F103: 3.27 | G103: 1.59
D104: Green | E104: White | F104: Red | G104: Blue
B105: HA temperature | C105: brightness | D105: GPIO14 | E105: GPIO12 | F105: GPIO13 | G105: GPIO5
B106: 223 | C106: 1 | D106: 2.94 | E106: 0.42 | F106: 3.27 | G106: 3.02
B107: =(B106-$B$132)/($B$131-$B$132) -> 0.1609195402 | C107: 100 | D107: 0.88 | E107: 2.51 | F107: 3.27 | G107: 1.59
D108: Green | E108: White | F108: Red | G108: Blue
B109: HA temperature | C109: brightness | D109: GPIO14 | E109: GPIO12 | F109: GPIO13 | G109: GPIO5
B110: 222 | C110: 1 | D110: 2.86 | E110: 0.37 | F110: 3.28 | G110: 2.97
B111: =(B110-$B$132)/($B$131-$B$132) -> 0.1586206897 | C111: 100 | D111: 0.01 | E111: 2 | F111: 3.28 | G111: 1.17
D112: Green | E112: White | F112: Red | G112: Blue
B113: HA temperature | C113: brightness | D113: GPIO14 | E113: GPIO12 | F113: GPIO13 | G113: GPIO5
B114: 187 | C114: 1 | D114: 2.86 | E114: 0.33 | F114: 3.27 | G114: 2.95
B115: =(B114-$B$132)/($B$131-$B$132) -> 0.07816091954 | C115: 100 | D115: 0 | E115: 1.6 | F115: 3.27 | G115: 0.92
D116: Green | E116: White | F116: Red | G116: Blue
B117: HA temperature | C117: brightness | D117: GPIO14 | E117: GPIO12 | F117: GPIO13 | G117: GPIO5
A118: 0% warm | B118: =B132 -> 153 | C118: 1 | D118: 2.86 | E118: 0.28 | F118: 3.27 | G118: 2.92
B119: =(B118-$B$132)/($B$131-$B$132) -> 0 | C119: 10 | D119: 2.6 | E119: 0.36 | F119: 3.27 | G119: 2.71
C120: 20 | D120: 2.31 | E120: 0.44 | F120: 3.27 | G120: 2.48
C121: 30 | D121: 2.05 | E121: 0.51 | F121: 3.27 | G121: 2.27
C122: 40 | D122: 1.73 | E122: 0.6 | F122: 3.27 | G122: 2.02
C123: 50 | D123: 1.44 | E123: 0.69 | F123: 3.27 | G123: 1.78
C124: 60 | D124: 1.16 | E124: 0.77 | F124: 3.27 | G124: 1.55
C125: 70 | D125: 0.9 | E125: 0.84 | F125: 3.27 | G125: 1.34
C126: 80 | D126: 0.58 | E126: 0.93 | F126: 3.27 | G126: 1.08
C127: 90 | D127: 0.3 | E127: 1.01 | F127: 3.27 | G127: 0.85
C128: 100 | D128: 0 | E128: 1.1 | F128: 3.27 | G128: 0.62
A130: Home Assistant color temperature
A131: max temp | B131: 588
A132: min temp | B132: 153
A133: temp per 25% change | B133: =(B131-B132)/4 -> 108.75

Sheet ESPHome brightness to power
A1: These measurements show the brightness to GPIO power mapping in ESPHome’s RGBWW light component.
A3: brightness | B3: brightness float | C3: power float
A4: 1 | B4: 0.011765 | C4: 4e-06
A5: 19 | B5: 0.188235 | C5: 0.009315
A6: 20 | B6: 0.2 | C6: 0.011038 | D6: ← first level at which the light is visible
A7: 30 | B7: 0.298039 | C7: 0.033726
A8: 40 | B8: 0.4 | C8: 0.076872
A9: 50 | B9: 0.501961 | C9: 0.14517
A10: 60 | B10: 0.6 | C10: 0.239234
A11: 70 | B11: 0.698039 | C11: 0.36548
A12: 80 | B12: 0.8 | C12: 0.535367
A13: 90 | B13: 0.901961 | C13: 0.749075
A14: 100 | B14: 1 | C14: 1
A16: ESPhome translates the brightness to the required GPIO power using a non-linear function.
A17: That is fine, but not useful for our case. We need a linear translation.
A18: Therefore, I’ll provide a custom scaling function in the firmware.

Sheet GPIO14
A1: Brightness = 1
A3: temperature | B3: GPIO14
A4: ='Detailed white light'!B3 -> 588 | B4: ='Detailed white light'!D3 -> 2.97
A5: ='Detailed white light'!B16 -> 479 | B5: ='Detailed white light'!D16 -> 2.94
A6: ='Detailed white light'!B29 -> 420 | B6: ='Detailed white light'!D29 -> 2.92
A7: ='Detailed white light'!B33 -> 371 | B7: ='Detailed white light'!D33 -> 2.9
A8: ='Detailed white light'!B46 -> 370 | B8: ='Detailed white light'!D46 -> 2.9
A9: ='Detailed white light'!B50 -> 334 | B9: ='Detailed white light'!D50 -> 2.9
A10: ='Detailed white light'!B54 -> 333 | B10: ='Detailed white light'!D54 -> 2.96
A11: ='Detailed white light'!B58 -> 313 | B11: ='Detailed white light'!D58 -> 2.96
A12: ='Detailed white light'!B62 -> 312 | B12: ='Detailed white light'!D62 -> 3.27
A13: ='Detailed white light'!B66 -> 284 | B13: ='Detailed white light'!D66 -> 3.27
A14: ='Detailed white light'!B79 -> 262 | B14: ='Detailed white light'!D79 -> 3.27
A15: ='Detailed white light'!B92 -> 251 | B15: ='Detailed white light'!D92 -> 3.27
A16: ='Detailed white light'!B97 -> 250 | B16: ='Detailed white light'!D97 -> 2.94
A17: ='Detailed white light'!B101 -> 240 | B17: ='Detailed white light'!D101 -> 2.94
A18: ='Detailed white light'!B106 -> 223 | B18: ='Detailed white light'!D106 -> 2.94
A19: ='Detailed white light'!B110 -> 222 | B19: ='Detailed white light'!D110 -> 2.86
A20: ='Detailed white light'!B114 -> 187 | B20: ='Detailed white light'!D114 -> 2.86
A21: ='Detailed white light'!B118 -> 153 | B21: ='Detailed white light'!D118 -> 2.86
